{"text_format":"1","workbook":"xlsx","n_sheets":2,"sheets":["Indicadores","Clientes "],"not_rendered":{"charts":0,"images":1,"macros":1,"external_links":0,"defined_names":0,"comments":0,"pivot_tables":0},"unopened":[],"bounds":{"document_bytes":16777216,"sheet_cells":100000,"rows_first":2000,"rows_last":500,"rows_between":2000,"halvings":0,"cell_chars":16384,"cell_head_chars":4096},"cells_cut":0,"cells_raw":0,"read":"whole","date_system":"1900"}

{"sheet":"Indicadores","index":0,"n_rows":11,"n_cols":6,"rows_kept":11,"cut":false,"hidden":false,"merged":[[9,0,9,4],[10,0,10,4],[11,0,1048575,5],[0,6,1048575,16383],[0,0,0,5],[1,0,1,4],[3,0,3,4],[4,0,4,4],[7,0,7,4],[8,0,8,4]]}
["Indicadores"]
["Detalle",null,null,null,null,"Montos"]
["Número total de cuentas:",null,null,null,null,{"$f":"SUM('Clientes '!D13:D233)","v":0}]
["Número total de clientes:",null,null,null,null,{"$f":"SUM('Clientes '!G13:H233)","v":0}]
["Monto global de las cuentas bajo administración:",null,null,null,null,{"$f":"SUM('Clientes '!$I$13:$I$233,'Clientes '!$Y$13:$Y$233)","v":0}]
["Total de clientes naturales",null,null,null,null,{"$f":"SUM('Clientes '!$G$13:$G$233)","v":0}]
["Total de clientes jurídicos",null,null,null,null,{"$f":"SUM('Clientes '!$H$13:$H$233)","v":0}]
["Porcentaje de clientes locales:",null,null,null,null,{"$f":"IFERROR((('Clientes '!$G$67+'Clientes '!$H$67)/(F4))*1,0)","v":0}]
["Porcentaje de clientes extranjeros:",null,null,null,null,{"$f":"IFERROR((((F6+F7)-('Clientes '!$G$67+'Clientes '!$H$67))/(F4))*1,0)","v":0}]
["Porcentaje del monto global de su cartera representada por clientes locales:",null,null,null,null,{"$f":"IFERROR((('Clientes '!$I$67+'Clientes '!$Y$67)/F5),0)","v":0}]
["Porcentaje del monto global de su cartera representada por clientes extranjeros:",null,null,null,null,{"$f":"IFERROR((SUM('Clientes '!$I$13:$I$233,'Clientes '!$Y$13:$Y$233)-('Clientes '!$I$67+'Clientes '!$Y$67))/F5,0)","v":0}]

{"sheet":"Clientes ","index":1,"n_rows":233,"n_cols":40,"rows_kept":233,"cut":false,"hidden":false,"merged":[[7,0,7,39],[4,2,6,39],[8,3,9,5],[8,6,9,7],[8,8,11,8],[8,9,8,23],[10,3,11,3],[9,9,11,9],[9,10,9,23],[9,25,11,25],[9,26,9,39],[10,11,11,11],[10,12,11,12],[10,13,11,13],[10,14,11,14],[10,15,11,15],[121,0,186,0],[187,0,232,0],[12,0,45,0],[46,0,71,0],[72,0,89,0],[90,0,120,0],[10,21,11,21],[8,1,11,1],[8,0,11,0],[8,24,11,24],[10,34,11,34],[10,22,11,22],[10,23,11,23],[10,26,11,26],[10,27,11,27],[10,28,11,28],[10,4,11,4],[10,16,11,16],[10,17,11,17],[10,18,11,18],[10,19,11,19],[10,20,11,20],[10,29,11,29],[10,30,11,30],[10,31,11,31],[10,32,11,32],[10,33,11,33],[0,40,1048575,45],[0,2,0,9],[1,2,1,9],[2,2,2,9],[3,2,3,9],[10,39,11,39],[8,2,11,2],[10,36,11,36],[10,37,11,37],[10,38,11,38],[10,5,11,5],[10,6,11,6],[10,7,11,7],[10,10,11,10],[8,25,8,39],[10,35,11,35]]}
[null,null,"Superintendencia del Mercado de Valores"]
[null,null,"Asesores de Inversión"]
[null,null,"Plantilla DS-14"]
[null,null,"  Versión 1.1"]
["Asesor de Inversión:"]
["Código*:"]
["Período*:"]
["Los campos con asterisco (*) son obligatorios."]
["Grupo","Código","Nacionalidad","Cuentas (número)",null,null,"Clientes (número)",null,"Monto de Cuentas(en Balboas) Clientes Naturales*","Clientes Naturales",null,null,null,null,null,null,null,null,null,null,null,null,null,null,"Monto de Cuentas(en Balboas) Clientes Jurídicos*","Clientes Jurídicos"]
[null,null,null,null,null,null,null,null,null,"Efectivo","Títulos (en Balboas)",null,null,null,null,null,null,null,null,null,null,null,null,null,null,"Efectivo","Títulos (en Balboas)"]
[null,null,null,"Número*","Discrecionales*","No Discrecionales*","Naturales*","Jurídicos*",null,null,"Acciones Comunes","Acciones Preferidas","Acciones o Cuotas de Participación","Bonos Privados","Bonos Estatales","Letras del Tesoro","Notas del Tesoro","Valores Comerciales Negociables","Futuros","Opciones","Notas Estructuradas","Metales","Otros*","Detallar",null,null,"Acciones Comunes","Acciones Preferidas","Acciones o Cuotas de Participación","Bonos Privados","Bonos Estatales","Letras del Tesoro","Notas del Tesoro","Valores Comerciales Negociables","Futuros","Opciones","Notas Estructuradas","Metales","Otros*","Detallar"]
[]
["OCDE","001","Alemania",{"$f":"SUM(E13:F13)","v":0},null,null,null,null,{"$f":"SUM(J13:W13)","v":0},0,null,null,null,null,null,null,null,null,null,null,null,null,null,null,{"$f":"SUM(Z13:AM13)","v":0},0]
[null,"002","Andorra",{"$f":"SUM(E14:F14)","v":0},null,null,null,null,{"$f":"SUM(J14:W14)","v":0},0,null,null,null,null,null,null,null,null,null,null,null,null,null,null,{"$f":"SUM(Z14:AM14)","v":0},0]
[null,"003","Australia",0,null,null,null,null,0,0,null,null,null,null,null,null,null,null,null,null,null,null,null,null,0,0]
[null,"004","Austria",0,null,null,null,null,0,0,null,null,null,null,null,null,null,null,null,null,null,null,null,null,0,0]
[null,"005","Bélgica",0,null,null,null,null,0,0,null,null,null,null,null,null,null,null,null,null,null,null,null,null,0,0]
[null,"006","Canada",0,null,null,null,null,0,0,null,null,null,null,null,null,null,null,null,null,null,null,null,null,0,0]
[null,"007","Chipre",0,null,null,null,null,0,0,null,null,null,null,null,null,null,null,null,null,null,null,null,null,0,0]
[null,"008","Dinamarca",0,null,null,null,null,0,0,null,null,null,null,null,null,null,null,null,null,null,null,null,null,0,0]
[null,"009","Eslovaquia",0,null,null,null,null,0,0,null,null,null,null,null,null,null,null,null,null,null,null,null,null,0,0]
[null,"010","Eslovenia",0,null,null,null,null,0,0,null,null,null,null,null,null,null,null,null,null,null,null,null,null,0,0]
[null,"011","España",0,null,null,null,null,0,0,null,null,null,null,null,null,null,null,null,null,null,null,null,null,0,0]
[null,"012","Estados Unidos de América (INCLUYE Samoa Americana, Guam, Islas Midway, Islas Marianas del Norte, Puerto Rico, Islas Vírgenes de los EE.UU. y las Islas Wake)",0,null,null,null,null,0,0,null,null,null,null,null,null,null,null,null,null,null,null,null,null,0,0]
[null,"013","Estonia",0,null,null,null,null,0,0,null,null,null,null,null,null,null,null,null,null,null,null,null,null,0,0]
[null,"014","Finlandia",0,null,null,null,null,0,0,null,null,null,null,null,null,null,null,null,null,null,null,null,null,0,0]
[null,"015","Francia (INCLUYE Guayana Francesa, Territorios Australes Franceses, Guadalupe, Martinica, Mayotte, Mónaco, Reunión y San Pedro y Miquelón)",0,null,null,null,null,0,0,null,null,null,null,null,null,null,null,null,null,null,null,null,null,0,0]
[null,"016","Grecia",0,null,null,null,null,0,0,null,null,null,null,null,null,null,null,null,null,null,null,null,null,0,0]
[null,"017","Groenlandia",0,null,null,null,null,0,0,null,null,null,null,null,null,null,null,null,null,null,null,null,null,0,0]
[null,"018","Holanda",0,null,null,null,null,0,0,null,null,null,null,null,null,null,null,null,null,null,null,null,null,0,0]
[null,"019","Irlanda",0,null,null,null,null,0,0,null,null,null,null,null,null,null,null,null,null,null,null,null,null,0,0]
[null,"020","Islandia",0,null,null,null,null,0,0,null,null,null,null,null,null,null,null,null,null,null,null,null,null,0,0]
[null,"021","Islas Feroe",0,null,null,null,null,0,0,null,null,null,null,null,null,null,null,null,null,null,null,null,null,0,0]
[null,"022","Italia",0,null,null,null,null,0,0,null,null,null,null,null,null,null,null,null,null,null,null,null,null,0,0]
[null,"023","Japón",0,null,null,null,null,0,0,null,null,null,null,null,null,null,null,null,null,null,null,null,null,0,0]
[null,"024","Liechtenstein",0,null,null,null,null,0,0,null,null,null,null,null,null,null,null,null,null,null,null,null,null,0,0]
[null,"025","Luxemburgo",0,null,null,null,null,0,0,null,null,null,null,null,null,null,null,null,null,null,null,null,null,0,0]
[null,"026","Malta",0,null,null,null,null,0,0,null,null,null,null,null,null,null,null,null,null,null,null,null,null,0,0]
[null,"027","Noruega",0,null,null,null,null,0,0,null,null,null,null,null,null,null,null,null,null,null,null,null,null,0,0]
[null,"028","Nueva Zelanda",0,null,null,null,null,0,0,null,null,null,null,null,null,null,null,null,null,null,null,null,null,0,0]
[null,"029","Portugal",0,null,null,null,null,0,0,null,null,null,null,null,null,null,null,null,null,null,null,null,null,0,0]
[null,"030","Reino Unido",0,null,null,null,null,0,0,null,null,null,null,null,null,null,null,null,null,null,null,null,null,0,0]
[null,"031","San Marino",0,null,null,null,null,0,0,null,null,null,null,null,null,null,null,null,null,null,null,null,null,0,0]
[null,"032","Suecia",0,null,null,null,null,0,0,null,null,null,null,null,null,null,null,null,null,null,null,null,null,0,0]
[null,"033","Suiza",0,null,null,null,null,0,0,null,null,null,null,null,null,null,null,null,null,null,null,null,null,0,0]
[null,"034","Vaticano",0,null,null,null,null,0,0,null,null,null,null,null,null,null,null,null,null,null,null,null,null,0,0]
["Centros Offshore ","035","Anguila",0,null,null,null,null,0,0,null,null,null,null,null,null,null,null,null,null,null,null,null,null,0,0]
[null,"036","Antigua y Barbuda",0,null,null,null,null,0,0,null,null,null,null,null,null,null,null,null,null,null,null,null,null,0,0]
[null,"037","Antillas Neerlandesas",0,null,null,null,null,0,0,null,null,null,null,null,null,null,null,null,null,null,null,null,null,0,0]
[null,"038","Aruba",0,null,null,null,null,0,0,null,null,null,null,null,null,null,null,null,null,null,null,null,null,0,0]
[null,"039","Bahamas",0,null,null,null,null,0,0,null,null,null,null,null,null,null,null,null,null,null,null,null,null,0,0]
[null,"040","Bahréin",0,null,null,null,null,0,0,null,null,null,null,null,null,null,null,null,null,null,null,null,null,0,0]
[null,"041","Barbados",0,null,null,null,null,0,0,null,null,null,null,null,null,null,null,null,null,null,null,null,null,0,0]
[null,"042","Bermudas",0,null,null,null,null,0,0,null,null,null,null,null,null,null,null,null,null,null,null,null,null,0,0]
[null,"043","Curazao",0,null,null,null,null,0,0,null,null,null,null,null,null,null,null,null,null,null,null,null,null,0,0]
[null,"044","Gibraltar",0,null,null,null,null,0,0,null,null,null,null,null,null,null,null,null,null,null,null,null,null,0,0]
[null,"045","Guernsey",0,null,null,null,null,0,0,null,null,null,null,null,null,null,null,null,null,null,null,null,null,0,0]
[null,"046","Hong Kong SAR",0,null,null,null,null,0,0,null,null,null,null,null,null,null,null,null,null,null,null,null,null,0,0]
[null,"047","Isla de los Hombres",0,null,null,null,null,0,0,null,null,null,null,null,null,null,null,null,null,null,null,null,null,0,0]
[null,"048","Islas Caimán",0,null,null,null,null,0,0,null,null,null,null,null,null,null,null,null,null,null,null,null,null,0,0]
[null,"049","Islas Vírgenes Británicas",0,null,null,null,null,0,0,null,null,null,null,null,null,null,null,null,null,null,null,null,null,0,0]
[null,"050","jersey",0,null,null,null,null,0,0,null,null,null,null,null,null,null,null,null,null,null,null,null,null,0,0]
[null,"051","Macao",0,null,null,null,null,0,0,null,null,null,null,null,null,null,null,null,null,null,null,null,null,0,0]
[null,"052","Líbano",0,null,null,null,null,0,0,null,null,null,null,null,null,null,null,null,null,null,null,null,null,0,0]
[null,"053","Mauricio",0,null,null,null,null,0,0,null,null,null,null,null,null,null,null,null,null,null,null,null,null,0,0]
[null,"054","Montserrat y San Cristóbal",0,null,null,null,null,0,0,null,null,null,null,null,null,null,null,null,null,null,null,null,null,0,0]
[null,"055","Panamá",0,null,null,null,null,0,0,null,null,null,null,null,null,null,null,null,null,null,null,null,null,0,0]
[null,"056","Samoa",0,null,null,null,null,0,0,null,null,null,null,null,null,null,null,null,null,null,null,null,null,0,0]
[null,"057","Singapur",0,null,null,null,null,0,0,null,null,null,null,null,null,null,null,null,null,null,null,null,null,0,0]
[null,"058","Sint Maarten",0,null,null,null,null,0,0,null,null,null,null,null,null,null,null,null,null,null,null,null,null,0,0]
[null,"059","St. Kitts - Nevis",0,null,null,null,null,0,0,null,null,null,null,null,null,null,null,null,null,null,null,null,null,0,0]
[null,"060","Vanuatu",0,null,null,null,null,0,0,null,null,null,null,null,null,null,null,null,null,null,null,null,null,0,0]
["Europa","061","Albania",0,null,null,null,null,0,0,null,null,null,null,null,null,null,null,null,null,null,null,null,null,0,0]
[null,"062","Bielorrusia",0,null,null,null,null,0,0,null,null,null,null,null,null,null,null,null,null,null,null,null,null,0,0]
[null,"063","Bosnia y Herzegovina",0,null,null,null,null,0,0,null,null,null,null,null,null,null,null,null,null,null,null,null,null,0,0]
[null,"064","Bulgaria",0,null,null,null,null,0,0,null,null,null,null,null,null,null,null,null,null,null,null,null,null,0,0]
[null,"065","Croacia",0,null,null,null,null,0,0,null,null,null,null,null,null,null,null,null,null,null,null,null,null,0,0]
[null,"066","Hungría",{"$f":"SUM(E78:F78)","v":0},null,null,null,null,{"$f":"SUM(J78:W78)","v":0},0,null,null,null,null,null,null,null,null,null,null,null,null,null,null,{"$f":"SUM(Z78:AM78)","v":0},0]
[null,"067","Letonia",0,null,null,null,null,0,0,null,null,null,null,null,null,null,null,null,null,null,null,null,null,0,0]
[null,"068","Lituania",0,null,null,null,null,0,0,null,null,null,null,null,null,null,null,null,null,null,null,null,null,0,0]
[null,"069","Macedonia",0,null,null,null,null,0,0,null,null,null,null,null,null,null,null,null,null,null,null,null,null,0,0]
[null,"070","Moldavia",0,null,null,null,null,0,0,null,null,null,null,null,null,null,null,null,null,null,null,null,null,0,0]
[null,"071","Montenegro",0,null,null,null,null,0,0,null,null,null,null,null,null,null,null,null,null,null,null,null,null,0,0]
[null,"072","Polonia",0,null,null,null,null,0,0,null,null,null,null,null,null,null,null,null,null,null,null,null,null,0,0]
[null,"073","República Checa",0,null,null,null,null,0,0,null,null,null,null,null,null,null,null,null,null,null,null,null,null,0,0]
[null,"074","Rumania",0,null,null,null,null,0,0,null,null,null,null,null,null,null,null,null,null,null,null,null,null,0,0]
[null,"075","Rusia",0,null,null,null,null,0,0,null,null,null,null,null,null,null,null,null,null,null,null,null,null,0,0]
[null,"076","Serbia",0,null,null,null,null,0,0,null,null,null,null,null,null,null,null,null,null,null,null,null,null,0,0]
[null,"077","Turquía",0,null,null,null,null,0,0,null,null,null,null,null,null,null,null,null,null,null,null,null,null,0,0]
[null,"078","Ucrania",0,null,null,null,null,0,0,null,null,null,null,null,null,null,null,null,null,null,null,null,null,0,0]
[" Latino América y Caribe","079","Argentina",0,null,null,null,null,0,0,null,null,null,null,null,null,null,null,null,null,null,null,null,null,0,0]
[null,"080","Belice",0,null,null,null,null,0,0,null,null,null,null,null,null,null,null,null,null,null,null,null,null,0,0]
[null,"081","Bolivia",0,null,null,null,null,0,0,null,null,null,null,null,null,null,null,null,null,null,null,null,null,0,0]
[null,"082","Bonaire, Saint Eustatius and Saba",0,null,null,null,null,0,0,null,null,null,null,null,null,null,null,null,null,null,null,null,null,0,0]
[null,"083","Brasil",0,null,null,null,null,0,0,null,null,null,null,null,null,null,null,null,null,null,null,null,null,0,0]
[null,"084","Chile",0,null,null,null,null,0,0,null,null,null,null,null,null,null,null,null,null,null,null,null,null,0,0]
[null,"085","Colombia",0,null,null,null,null,0,0,null,null,null,null,null,null,null,null,null,null,null,null,null,null,0,0]
[null,"086","Costa Rica",0,null,null,null,null,0,0,null,null,null,null,null,null,null,null,null,null,null,null,null,null,0,0]
[null,"087","Cuba",0,null,null,null,null,0,0,null,null,null,null,null,null,null,null,null,null,null,null,null,null,0,0]
[null,"088","Dominica",0,null,null,null,null,0,0,null,null,null,null,null,null,null,null,null,null,null,null,null,null,0,0]
[null,"089","República Dominicana",0,null,null,null,null,0,0,null,null,null,null,null,null,null,null,null,null,null,null,null,null,0,0]
[null,"090","Ecuador  ",0,null,null,null,null,0,0,null,null,null,null,null,null,null,null,null,null,null,null,null,null,0,0]
[null,"091","El Salvador",0,null,null,null,null,0,0,null,null,null,null,null,null,null,null,null,null,null,null,null,null,0,0]
[null,"092","Falkland Islands",0,null,null,null,null,0,0,null,null,null,null,null,null,null,null,null,null,null,null,null,null,0,0]
[null,"093","Grenada",0,null,null,null,null,0,0,null,null,null,null,null,null,null,null,null,null,null,null,null,null,0,0]
[null,"094","Guatemala",0,null,null,null,null,0,0,null,null,null,null,null,null,null,null,null,null,null,null,null,null,0,0]
[null,"095","Guyana",0,null,null,null,null,0,0,null,null,null,null,null,null,null,null,null,null,null,null,null,null,0,0]
[null,"096","Haití",0,null,null,null,null,0,0,null,null,null,null,null,null,null,null,null,null,null,null,null,null,0,0]
[null,"097","Honduras",0,null,null,null,null,0,0,null,null,null,null,null,null,null,null,null,null,null,null,null,null,0,0]
[null,"098","Jamaica",0,null,null,null,null,0,0,null,null,null,null,null,null,null,null,null,null,null,null,null,null,0,0]
[null,"099","México",0,null,null,null,null,0,0,null,null,null,null,null,null,null,null,null,null,null,null,null,null,0,0]
[null,{"$f":"1+B111","v":100},"Nicaragua",0,null,null,null,null,0,0,null,null,null,null,null,null,null,null,null,null,null,null,null,null,0,0]
[null,101,"Paraguay",0,null,null,null,null,0,0,null,null,null,null,null,null,null,null,null,null,null,null,null,null,0,0]
[null,102,"Perú",0,null,null,null,null,0,0,null,null,null,null,null,null,null,null,null,null,null,null,null,null,0,0]
[null,103,"St. Lucia",0,null,null,null,null,0,0,null,null,null,null,null,null,null,null,null,null,null,null,null,null,0,0]
[null,104,"St. Vincent ",0,null,null,null,null,0,0,null,null,null,null,null,null,null,null,null,null,null,null,null,null,0,0]
[null,105,"Suriname",0,null,null,null,null,0,0,null,null,null,null,null,null,null,null,null,null,null,null,null,null,0,0]
[null,106,"Trinidad and Tobago  ",0,null,null,null,null,0,0,null,null,null,null,null,null,null,null,null,null,null,null,null,null,0,0]
[null,107,"Turks and Caicos",0,null,null,null,null,0,0,null,null,null,null,null,null,null,null,null,null,null,null,null,null,0,0]
[null,108,"Uruguay",0,null,null,null,null,0,0,null,null,null,null,null,null,null,null,null,null,null,null,null,null,0,0]
[null,109,"Venezuela  ",0,null,null,null,null,0,0,null,null,null,null,null,null,null,null,null,null,null,null,null,null,0,0]
["África y Medio Oriente",110,"Angola",0,null,null,null,null,0,0,null,null,null,null,null,null,null,null,null,null,null,null,null,null,0,0]
[null,111,"Arabia Saudita",0,null,null,null,null,0,0,null,null,null,null,null,null,null,null,null,null,null,null,null,null,0,0]
[null,112,"Argelia",0,null,null,null,null,0,0,null,null,null,null,null,null,null,null,null,null,null,null,null,null,0,0]
[null,113,"Benín",0,null,null,null,null,0,0,null,null,null,null,null,null,null,null,null,null,null,null,null,null,0,0]
[null,114,"Botswana",0,null,null,null,null,0,0,null,null,null,null,null,null,null,null,null,null,null,null,null,null,0,0]
[null,115,"Burkina Faso",0,null,null,null,null,0,0,null,null,null,null,null,null,null,null,null,null,null,null,null,null,0,0]
[null,{"$f":"1+B127","v":116},"Burundi",0,null,null,null,null,0,0,null,null,null,null,null,null,null,null,null,null,null,null,null,null,0,0]
[null,117,"Cabo Verde",0,null,null,null,null,0,0,null,null,null,null,null,null,null,null,null,null,null,null,null,null,0,0]
[null,118,"Camerún",0,null,null,null,null,0,0,null,null,null,null,null,null,null,null,null,null,null,null,null,null,0,0]
[null,119,"Chad",0,null,null,null,null,0,0,null,null,null,null,null,null,null,null,null,null,null,null,null,null,0,0]
[null,120,"Comoras",0,null,null,null,null,0,0,null,null,null,null,null,null,null,null,null,null,null,null,null,null,0,0]
[null,121,"Congo",0,null,null,null,null,0,0,null,null,null,null,null,null,null,null,null,null,null,null,null,null,0,0]
[null,122,"Côte d'Ivoire",0,null,null,null,null,0,0,null,null,null,null,null,null,null,null,null,null,null,null,null,null,0,0]
[null,123,"Djibouti",0,null,null,null,null,0,0,null,null,null,null,null,null,null,null,null,null,null,null,null,null,0,0]
[null,124,"Egipto",0,null,null,null,null,0,0,null,null,null,null,null,null,null,null,null,null,null,null,null,null,0,0]
[null,125,"Emiratos Árabes Unidos",0,null,null,null,null,0,0,null,null,null,null,null,null,null,null,null,null,null,null,null,null,0,0]
[null,126,"Eritrea",0,null,null,null,null,0,0,null,null,null,null,null,null,null,null,null,null,null,null,null,null,0,0]
[null,127,"Etiopía",0,null,null,null,null,0,0,null,null,null,null,null,null,null,null,null,null,null,null,null,null,0,0]
[null,128,"Gabón",0,null,null,null,null,0,0,null,null,null,null,null,null,null,null,null,null,null,null,null,null,0,0]
[null,129,"Gambia",0,null,null,null,null,0,0,null,null,null,null,null,null,null,null,null,null,null,null,null,null,0,0]
[null,130,"Ghana",{"$f":"SUM(E142:F142)","v":0},null,null,null,null,{"$f":"SUM(J142:W142)","v":0},0,null,null,null,null,null,null,null,null,null,null,null,null,null,null,{"$f":"SUM(Z142:AM142)","v":0},0]
[null,131,"Guinea",0,null,null,null,null,0,0,null,null,null,null,null,null,null,null,null,null,null,null,null,null,0,0]
[null,{"$f":"1+B143","v":132},"Guinea Ecuatorial",0,null,null,null,null,0,0,null,null,null,null,null,null,null,null,null,null,null,null,null,null,0,0]
[null,133,"Guinea-Bissau",0,null,null,null,null,0,0,null,null,null,null,null,null,null,null,null,null,null,null,null,null,0,0]
[null,134,"Irak",0,null,null,null,null,0,0,null,null,null,null,null,null,null,null,null,null,null,null,null,null,0,0]
[null,135,"Irán",0,null,null,null,null,0,0,null,null,null,null,null,null,null,null,null,null,null,null,null,null,0,0]
[null,136,"Israel",0,null,null,null,null,0,0,null,null,null,null,null,null,null,null,null,null,null,null,null,null,0,0]
[null,137,"Jordania",0,null,null,null,null,0,0,null,null,null,null,null,null,null,null,null,null,null,null,null,null,0,0]
[null,138,"Katar",0,null,null,null,null,0,0,null,null,null,null,null,null,null,null,null,null,null,null,null,null,0,0]
[null,139,"Kenia",0,null,null,null,null,0,0,null,null,null,null,null,null,null,null,null,null,null,null,null,null,0,0]
[null,140,"Kuwait",0,null,null,null,null,0,0,null,null,null,null,null,null,null,null,null,null,null,null,null,null,0,0]
[null,141,"Lesoto",0,null,null,null,null,0,0,null,null,null,null,null,null,null,null,null,null,null,null,null,null,0,0]
[null,142,"Liberia",0,null,null,null,null,0,0,null,null,null,null,null,null,null,null,null,null,null,null,null,null,0,0]
[null,143,"Libia",0,null,null,null,null,0,0,null,null,null,null,null,null,null,null,null,null,null,null,null,null,0,0]
[null,144,"Madagascar",0,null,null,null,null,0,0,null,null,null,null,null,null,null,null,null,null,null,null,null,null,0,0]
[null,145,"Malawi",0,null,null,null,null,0,0,null,null,null,null,null,null,null,null,null,null,null,null,null,null,0,0]
[null,146,"Malí",0,null,null,null,null,0,0,null,null,null,null,null,null,null,null,null,null,null,null,null,null,0,0]
[null,147,"Marruecos",0,null,null,null,null,0,0,null,null,null,null,null,null,null,null,null,null,null,null,null,null,0,0]
[null,{"$f":"1+B159","v":148},"Mauritania",0,null,null,null,null,0,0,null,null,null,null,null,null,null,null,null,null,null,null,null,null,0,0]
[null,149,"Mozambique",0,null,null,null,null,0,0,null,null,null,null,null,null,null,null,null,null,null,null,null,null,0,0]
[null,150,"Namibia",0,null,null,null,null,0,0,null,null,null,null,null,null,null,null,null,null,null,null,null,null,0,0]
[null,151,"Níger",0,null,null,null,null,0,0,null,null,null,null,null,null,null,null,null,null,null,null,null,null,0,0]
[null,152,"Nigeria",0,null,null,null,null,0,0,null,null,null,null,null,null,null,null,null,null,null,null,null,null,0,0]
[null,153,"Omán",0,null,null,null,null,0,0,null,null,null,null,null,null,null,null,null,null,null,null,null,null,0,0]
[null,154,"República Centroafricana",0,null,null,null,null,0,0,null,null,null,null,null,null,null,null,null,null,null,null,null,null,0,0]
[null,155,"República Democrática del Congo",0,null,null,null,null,0,0,null,null,null,null,null,null,null,null,null,null,null,null,null,null,0,0]
[null,156,"Ruanda",0,null,null,null,null,0,0,null,null,null,null,null,null,null,null,null,null,null,null,null,null,0,0]
[null,157,"Santo Tomé y Príncipe",0,null,null,null,null,0,0,null,null,null,null,null,null,null,null,null,null,null,null,null,null,0,0]
[null,158,"Senegal",0,null,null,null,null,0,0,null,null,null,null,null,null,null,null,null,null,null,null,null,null,0,0]
[null,159,"Seychelles",0,null,null,null,null,0,0,null,null,null,null,null,null,null,null,null,null,null,null,null,null,0,0]
[null,160,"Sierra Leona",0,null,null,null,null,0,0,null,null,null,null,null,null,null,null,null,null,null,null,null,null,0,0]
[null,161,"Siria",0,null,null,null,null,0,0,null,null,null,null,null,null,null,null,null,null,null,null,null,null,0,0]
[null,162,"Somalia",0,null,null,null,null,0,0,null,null,null,null,null,null,null,null,null,null,null,null,null,null,0,0]
[null,163,"St. Helena",0,null,null,null,null,0,0,null,null,null,null,null,null,null,null,null,null,null,null,null,null,0,0]
[null,{"$f":"1+B175","v":164},"Sudáfrica",0,null,null,null,null,0,0,null,null,null,null,null,null,null,null,null,null,null,null,null,null,0,0]
[null,165,"Sudán",0,null,null,null,null,0,0,null,null,null,null,null,null,null,null,null,null,null,null,null,null,0,0]
[null,166,"Sudán del Sur",0,null,null,null,null,0,0,null,null,null,null,null,null,null,null,null,null,null,null,null,null,0,0]
[null,167,"Swazilandia",0,null,null,null,null,0,0,null,null,null,null,null,null,null,null,null,null,null,null,null,null,0,0]
[null,168,"Tanzania",0,null,null,null,null,0,0,null,null,null,null,null,null,null,null,null,null,null,null,null,null,0,0]
[null,169,"Territorio Palestino",0,null,null,null,null,0,0,null,null,null,null,null,null,null,null,null,null,null,null,null,null,0,0]
[null,170,"Togo",0,null,null,null,null,0,0,null,null,null,null,null,null,null,null,null,null,null,null,null,null,0,0]
[null,171,"Túnez",0,null,null,null,null,0,0,null,null,null,null,null,null,null,null,null,null,null,null,null,null,0,0]
[null,172,"Uganda",0,null,null,null,null,0,0,null,null,null,null,null,null,null,null,null,null,null,null,null,null,0,0]
[null,173,"Yemen",0,null,null,null,null,0,0,null,null,null,null,null,null,null,null,null,null,null,null,null,null,0,0]
[null,174,"Zambia",0,null,null,null,null,0,0,null,null,null,null,null,null,null,null,null,null,null,null,null,null,0,0]
[null,175,"Zimbabue",0,null,null,null,null,0,0,null,null,null,null,null,null,null,null,null,null,null,null,null,null,0,0]
["Asia y Pacífico",176,"Afganistán",0,null,null,null,null,0,0,null,null,null,null,null,null,null,null,null,null,null,null,null,null,0,0]
[null,177,"Armenia",0,null,null,null,null,0,0,null,null,null,null,null,null,null,null,null,null,null,null,null,null,0,0]
[null,178,"Azerbaiyán",0,null,null,null,null,0,0,null,null,null,null,null,null,null,null,null,null,null,null,null,null,0,0]
[null,179,"Bangladesh",0,null,null,null,null,0,0,null,null,null,null,null,null,null,null,null,null,null,null,null,null,0,0]
[null,{"$f":"1+B191","v":180},"Brunei",0,null,null,null,null,0,0,null,null,null,null,null,null,null,null,null,null,null,null,null,null,0,0]
[null,181,"Bután",0,null,null,null,null,0,0,null,null,null,null,null,null,null,null,null,null,null,null,null,null,0,0]
[null,182,"Camboya",0,null,null,null,null,0,0,null,null,null,null,null,null,null,null,null,null,null,null,null,null,0,0]
[null,183,"China",0,null,null,null,null,0,0,null,null,null,null,null,null,null,null,null,null,null,null,null,null,0,0]
[null,184,"Corea del Norte",0,null,null,null,null,0,0,null,null,null,null,null,null,null,null,null,null,null,null,null,null,0,0]
[null,185,"Corea del Sur",0,null,null,null,null,0,0,null,null,null,null,null,null,null,null,null,null,null,null,null,null,0,0]
[null,186,"EE.UU. Islas del Pacífico",0,null,null,null,null,0,0,null,null,null,null,null,null,null,null,null,null,null,null,null,null,0,0]
[null,187,"Fiji",0,null,null,null,null,0,0,null,null,null,null,null,null,null,null,null,null,null,null,null,null,0,0]
[null,188,"Filipinas",0,null,null,null,null,0,0,null,null,null,null,null,null,null,null,null,null,null,null,null,null,0,0]
[null,189,"Georgia",0,null,null,null,null,0,0,null,null,null,null,null,null,null,null,null,null,null,null,null,null,0,0]
[null,190,"India",0,null,null,null,null,0,0,null,null,null,null,null,null,null,null,null,null,null,null,null,null,0,0]
[null,191,"Indonesia",0,null,null,null,null,0,0,null,null,null,null,null,null,null,null,null,null,null,null,null,null,0,0]
[null,192,"Islas Marshall",0,null,null,null,null,0,0,null,null,null,null,null,null,null,null,null,null,null,null,null,null,0,0]
[null,193,"islas Salomón",0,null,null,null,null,0,0,null,null,null,null,null,null,null,null,null,null,null,null,null,null,0,0]
[null,194,"Kazajstán",{"$f":"SUM(E206:F206)","v":0},null,null,null,null,{"$f":"SUM(J206:W206)","v":0},0,null,null,null,null,null,null,null,null,null,null,null,null,null,null,{"$f":"SUM(Z206:AM206)","v":0},0]
[null,195,"Kirguistán",0,null,null,null,null,0,0,null,null,null,null,null,null,null,null,null,null,null,null,null,null,0,0]
[null,{"$f":"1+B207","v":196},"Kiribati",0,null,null,null,null,0,0,null,null,null,null,null,null,null,null,null,null,null,null,null,null,0,0]
[null,197,"Laos",0,null,null,null,null,0,0,null,null,null,null,null,null,null,null,null,null,null,null,null,null,0,0]
[null,198,"Malasia",0,null,null,null,null,0,0,null,null,null,null,null,null,null,null,null,null,null,null,null,null,0,0]
[null,199,"Maldivas",0,null,null,null,null,0,0,null,null,null,null,null,null,null,null,null,null,null,null,null,null,0,0]
[null,200,"Micronesia",0,null,null,null,null,0,0,null,null,null,null,null,null,null,null,null,null,null,null,null,null,0,0]
[null,201,"Mongolia",0,null,null,null,null,0,0,null,null,null,null,null,null,null,null,null,null,null,null,null,null,0,0]
[null,202,"Myanmar",0,null,null,null,null,0,0,null,null,null,null,null,null,null,null,null,null,null,null,null,null,0,0]
[null,203,"Nauru",0,null,null,null,null,0,0,null,null,null,null,null,null,null,null,null,null,null,null,null,null,0,0]
[null,204,"Nepal",0,null,null,null,null,0,0,null,null,null,null,null,null,null,null,null,null,null,null,null,null,0,0]
[null,205,"Nueva Caledonia",0,null,null,null,null,0,0,null,null,null,null,null,null,null,null,null,null,null,null,null,null,0,0]
[null,206,"Pakistán",0,null,null,null,null,0,0,null,null,null,null,null,null,null,null,null,null,null,null,null,null,0,0]
[null,207,"Palau",0,null,null,null,null,0,0,null,null,null,null,null,null,null,null,null,null,null,null,null,null,0,0]
[null,208,"Papua Nueva Guinea",0,null,null,null,null,0,0,null,null,null,null,null,null,null,null,null,null,null,null,null,null,0,0]
[null,209,"Polinesia francés",0,null,null,null,null,0,0,null,null,null,null,null,null,null,null,null,null,null,null,null,null,0,0]
[null,210,"Sri Lanka",0,null,null,null,null,0,0,null,null,null,null,null,null,null,null,null,null,null,null,null,null,0,0]
[null,211,"Tailandia",0,null,null,null,null,0,0,null,null,null,null,null,null,null,null,null,null,null,null,null,null,0,0]
[null,{"$f":"1+B223","v":212},"Taipéi Chino",0,null,null,null,null,0,0,null,null,null,null,null,null,null,null,null,null,null,null,null,null,0,0]
[null,213,"Tayikistán",0,null,null,null,null,0,0,null,null,null,null,null,null,null,null,null,null,null,null,null,null,0,0]
[null,214,"Territorios Británicos de Ultramar",0,null,null,null,null,0,0,null,null,null,null,null,null,null,null,null,null,null,null,null,null,0,0]
[null,215,"Timor Leste",0,null,null,null,null,0,0,null,null,null,null,null,null,null,null,null,null,null,null,null,null,0,0]
[null,216,"Tonga",0,null,null,null,null,0,0,null,null,null,null,null,null,null,null,null,null,null,null,null,null,0,0]
[null,217,"Turkmenistán",0,null,null,null,null,0,0,null,null,null,null,null,null,null,null,null,null,null,null,null,null,0,0]
[null,218,"Tuvalu",0,null,null,null,null,0,0,null,null,null,null,null,null,null,null,null,null,null,null,null,null,0,0]
[null,219,"Uzbekistán",0,null,null,null,null,0,0,null,null,null,null,null,null,null,null,null,null,null,null,null,null,0,0]
[null,220,"Vietnam",0,null,null,null,null,0,0,null,null,null,null,null,null,null,null,null,null,null,null,null,null,0,0]
[null,221,"Wallis y Futuna",0,null,null,null,null,0,0,null,null,null,null,null,null,null,null,null,null,null,null,null,null,0,0]